Cogmind - Beta 13 @@@ ROGUE MODE // 2024.05.16 @ 18:17:31 Player: GayPredator Result: Self-destructed Performance ------------- Evolutions (2) 1000 Regions Visited (5) 1000 Robots Destroyed (25) 125 Value Destroyed (661) 661 Prototype IDs (2) 40 Alien Tech Used (0) 0 Bonus (325) 325 TOTAL SCORE: 3151 Bonus ------- Follower Combat Kills 25 Aligned with FarCom 300 Cogmind --------- Core Integrity 517/550 Matter 300/300 Energy 160/160 System Corruption 0% Temperature Cool (0) Movement Rolling (95) Ox1 Location -8/Materials Parts ------- > --- POWER (1) -------- Light Nuclear Core > --- PROPULSION (3) --- Light Treads Wheel > --- UTILITY (4) ------ Medium Storage Unit Machine Analyzer 0b10 Alert Chip Light Armor Plating > --- WEAPON (3) ------- Makeshift Sword > --- INVENTORY (10) --- Ion Engine Ion Engine Heat Sink Structural Scanner ECM Suite Hardened Light Armor Plating Thief Drone Bay (3/3) Light EM Pulse Cannon Datajack Plasma Cutter Peak State ------------ > --- POWER ------------ Light Nuclear Core > --- PROPULSION ------- Light Treads Wheel > --- UTILITY ---------- Medium Storage Unit Machine Analyzer 0b10 Alert Chip Light Armor Plating > --- WEAPON ----------- Makeshift Sword > --- INVENTORY -------- Ion Engine Ion Engine Heat Sink Structural Scanner ECM Suite Hardened Light Armor Plating Thief Drone Bay Light EM Pulse Cannon Datajack Plasma Cutter [Rating: 21] Favorites ----------- Power Ion Engine Engine Ion Engine Power Core Light Nuclear Core Propulsion Light Treads Treads Light Treads Wheel Wheel Utility 0b10 Alert Chip Device Structural Scanner Storage Small Storage Unit Processor 0b10 Alert Chip Protection Light Armor Plating Weapon Medium Laser Energy Gun Medium Laser Slashing Weapon Makeshift Sword Build | -11 -10 -10 -10 -9 -8 ------- Run | Yrd Mat Min Exi Min Mat Slots Evolved 4 | . . . . . 4 Power . | . . . . . . Propulsion 1 | . . . . . 1 Utility 2 | . . . . . 2 Weapon 1 | . . . . . 1 Parts Attached 25 | 7 1 4 2 8 3 Power 4 | 1 . 1 . 2 . Engine 3 | 1 . 1 . 1 . Core 1 | . . . . 1 . Reactor . | . . . . . . Propulsion 5 | 2 . . . 2 1 Treads 3 | 2 . . . . 1 Leg . | . . . . . . Wheel 2 | . . . . 2 . Hover . | . . . . . . Flight . | . . . . . . Utility 12 | 2 1 3 2 2 2 Device 3 | 1 1 1 . . . Storage 3 | 1 . . 1 1 . Processor 2 | . . . 1 . 1 Hackware . | . . . . . . Protection 4 | . . 2 . 1 1 Artifact . | . . . . . . Weapon 4 | 2 . . . 2 . Energy Gun 3 | 2 . . . 1 . Energy Cannon . | . . . . . . Ballistic Gun . | . . . . . . Ballistic Cannon . | . . . . . . Launcher . | . . . . . . Special Weapon . | . . . . . . Impact Weapon . | . . . . . . Slashing Weapon 1 | . . . . 1 . Piercing Weapon . | . . . . . . Special Melee Weapon . | . . . . . . Unidentified Prototypes 2 | . . 1 1 . . Parts Lost 5 | . . . . 5 . Power 1 | . . . . 1 . Propulsion 3 | . . . . 3 . Utility . | . . . . . . Weapon 1 | . . . . 1 . Highest Loss Streak 3 | . . . . 3 . To Critical Strikes . | . . . . . . Average Slot Usage (%) 98 | . 100 100 99 97 50 Engine 13 | . 14 14 14 13 . Treads 26 | . 28 28 28 24 1 Device 1 | . 14 1 . . . Storage 13 | . 14 14 14 13 9 Processor 8 | . . . 11 14 10 Protection 3 | . . 12 2 . 1 Energy Gun 23 | . 28 28 28 16 . Slashing Weapon 3 | . . . . 10 9 Naked Turns . | . . . . . . Heaviest Build 20 | 14 14 17 18 19 20 Greatest Support 40 | 40 40 40 40 40 10 Greatest Overweight (x) 1 | . . . . 1 1 Average Overweight (x) . | . . . . . 1 Largest Inventory Capacity 10 | 8 8 8 10 10 10 Average Capacity 8 | 6 8 8 8 9 10 Most Carried 10 | 5 8 8 9 10 10 Average Carried 8 | 2 6 7 8 9 9 Final Capacity 10 | 8 8 8 10 10 10 Final Carried 10 | 5 8 8 9 9 10 Class Distribution -------------------- 100% | Mutant Dominant Class ---------------- Mutant | -10/Materials Mutant | -10/Mines Mutant | -10/Exiles Mutant | -9/Mines Mutant | -8/Materials Resources | -11 -10 -10 -10 -9 -8 ----------- Run | Yrd Mat Min Exi Min Mat Matter Collected 450 | 270 10 30 20 90 30 Remotely . | . . . . . . Salvage Created 957 | 86 84 52 . 596 139 Parts 41 | 4 6 . . 25 6 Haulers Intercepted . | . . . . . . Recyclers Shooed . | . . . . . . Parts Field Recycled . | . . . . . . Retrieved Matter . | . . . . . . Parts Self-Destructed . | . . . . . . Prevented . | . . . . . . Kills | -11 -10 -10 -10 -9 -8 ------- Run | Yrd Mat Min Exi Min Mat Combat Hostiles Destroyed 20 | . 4 1 . 14 1 Melee 13 | . . . . 12 1 Guns 6 | . 4 1 . 1 . Classes Destroyed 9 | 2 3 . . 3 1 Worker 2 | . . . . 2 . Tunneler 1 | 1 . . . . . Recycler 2 | 1 . . . . 1 Watcher 1 | . 1 . . . . Swarmer 3 | . 3 . . . . Grunt 14 | . 1 1 . 12 . Duelist 1 | . . . . 1 . Sentry 1 | . . . . . 1 Assembled 1 | . . . . 1 . Best Kill Streak 3 | 2 3 1 . 3 2 Combat Bots Only 3 | . 3 1 . 3 1 Max Kills in Single Turn 2 | 1 2 1 . 1 1 Gunslinging 1 | . 1 . . . . Exploded . | . . . . . . Melee 1 | . . . . 1 1 Uniques/NPCs Destroyed . | . . . . . . Combat | -11 -10 -10 -10 -9 -8 -------- Run | Yrd Mat Min Exi Min Mat Hostile Shots Fired 102 | . 15 9 . 72 6 Missed 25 | . 4 . . 21 . Damage Taken 964 | . 94 131 . 646 93 Core 202 | . 19 28 . 122 33 Absorbed by Shields . | . . . . . . Core Remaining (%) 66 | 100 . . . 32 . Volleys Fired 37 | 3 13 7 . 14 . Largest 2 | 2 2 2 . 2 . Hottest 90 | 90 90 90 . 90 . Shots Fired 67 | 6 23 14 . 24 . Gun 67 | 6 23 14 . 24 . Cannon . | . . . . . . Launcher . | . . . . . . Special . | . . . . . . Kinetic . | . . . . . . Thermal 67 | 6 23 14 . 24 . Explosive . | . . . . . . Electromagnetic . | . . . . . . Robot Hit Streak 18 | 5 5 8 . 18 . Robot Miss Streak 4 | . 3 4 . 2 . Penetration Max . | . . . . . . Secondary Targets 2 | . 1 . . 1 . Max Gunslinging Chain 1 | . 1 . . 1 . Shots Hit Robots 74 | 5 12 9 . 45 3 Core Hits 29 | 3 6 3 . 16 1 Critical Kills . | . . . . . . Critical Parts Destroyed . | . . . . . . Critical Strikes 7 | . . . . 6 1 Burn 3 | . . . . 3 . Sever 4 | . . . . 3 1 Melee Attacks 63 | . . . . 56 7 Impact . | . . . . . . Slashing 63 | . . . . 56 7 Piercing . | . . . . . . Sneak Attacks 5 | . . . . 4 1 Combat Hostiles 2 | . . . . 2 . Follow-up Attacks . | . . . . . . Damage Inflicted 1772 | 57 160 111 . 1301 143 Guns 545 | 57 160 108 . 220 . Cannons . | . . . . . . Explosions . | . . . . . . Melee 1224 | . . . . 1081 143 Ramming 3 | . . 3 . . . Kinetic . | . . . . . . Thermal 545 | 57 160 108 . 220 . Explosive . | . . . . . . Electromagnetic . | . . . . . . Impact . | . . . . . . Slashing 1224 | . . . . 1081 143 Piercing . | . . . . . . Highest Corruption . | . . . . . . Average Corruption . | . . . . . . Corruption Purged . | . . . . . . Corruption Blocked . | . . . . . . Overload Shots . | . . . . . . Overflow Damage 109 | . . . . 67 42 Projectiles . | . . . . . . Explosions . | . . . . . . Melee 109 | . . . . 67 42 Knockbacks . | . . . . . . Impact . | . . . . . . Kinetic . | . . . . . . Secondary . | . . . . . . Self-Inflicted Damage . | . . . . . . Shots . | . . . . . . Rammed 1 | . . 1 . . . Targets Rammed 1 | . . 1 . . . Kicked . | . . . . . . Crushed . | . . . . . . Highest Temperature 467 | 60 120 267 . 467 . Average Temperature 144 | 26 50 144 . 245 . Received Heat Transfer 408 | . 12 81 . 288 27 Effects 3 | . . 1 . 2 . Shutdowns 1 | . . . . 1 . Interference 2 | . . 1 . 1 . Siege Activations . | . . . . . . Robots Corrupted . | . . . . . . Combat Hostiles . | . . . . . . Parts Fried . | . . . . . . Impact Corruptions . | . . . . . . Robots Melted 1 | . . . . 1 . Combat Hostiles 1 | . . . . 1 . Parts Melted 7 | 2 . 1 . 4 . Heat Transferred 1696 | 161 433 285 . 817 . Parts Sabotaged . | . . . . . . Parts Stolen . | . . . . . . Parts Stripped . | . . . . . . Power Chain Reactions . | . . . . . . Alert | -11 -10 -10 -10 -9 -8 ------- Run | Yrd Mat Min Exi Min Mat Peak Influence 150 | 10 129 150 . 132 92 Initial 51 | . 6 49 . . 51 Average 45 | 4 64 51 . 37 66 Maximum Alert Level . | . . . . . . Low Security (%) 100 | 100 100 100 . 100 100 Level 1 . | . . . . . . Level 2 . | . . . . . . Level 3 . | . . . . . . Level 4 . | . . . . . . Level 5 . | . . . . . . High Security . | . . . . . . Max Security . | . . . . . . Squads Dispatched 3 | . 1 . . 1 1 Investigation 3 | . 1 . . 1 1 Extermination . | . . . . . . Reinforcement . | . . . . . . Assault . | . . . . . . Garrison . | . . . . . . Intercept . | . . . . . . Searches Triggered . | . . . . . . Construction Impeded . | . . . . . . Haulers Reinforced . | . . . . . . Active Scanning Responses . | . . . . . . Cargo Convoy Interrupts . | . . . . . . Stealth | -11 -10 -10 -10 -9 -8 --------- Run | Yrd Mat Min Exi Min Mat Distress Signals 1 | . 1 . . . . Communications Jammed . | . . . . . . Distress Signals . | . . . . . . Times Spotted 25 | . 6 2 . 16 1 Peak Tracking Total 4 | . 3 2 . 4 3 Tactical Retreats 3 | . . 2 . 1 . Traps | -11 -10 -10 -10 -9 -8 ------- Run | Yrd Mat Min Exi Min Mat Traps Triggered 1 | . 1 . . . . Indirectly . | . . . . . . Trap Hack Attempts . | . . . . . . Triggered . | . . . . . . Disarmed . | . . . . . . Reprogrammed . | . . . . . . Reused . | . . . . . . Traps Extracted . | . . . . . . Installed . | . . . . . . Triggered . | . . . . . . Machines | -11 -10 -10 -10 -9 -8 ---------- Run | Yrd Mat Min Exi Min Mat Machines Disabled . | . . . . . . Max in Single Turn . | . . . . . . Machines Repaired . | . . . . . . Machines Dismantled . | . . . . . . Machines Sabotaged . | . . . . . . Overloaded Fab Kills . | . . . . . . Hacking | -11 -10 -10 -10 -9 -8 --------- Run | Yrd Mat Min Exi Min Mat Machines Accessed 7 | . 2 1 2 1 1 Terminals 4 | . 2 . . 1 1 Fabricators . | . . . . . . Repair Stations . | . . . . . . Recycling Units . | . . . . . . Scanalyzers . | . . . . . . Garrison Access . | . . . . . . Total Hacks 13 | . 5 1 2 2 3 Successful 6 | . 3 1 2 . . Failed 7 | . 2 . . 2 3 Catastrophic 2 | . . . . 1 1 Database Lockouts . | . . . . . . Manual 9 | . 3 . 1 2 3 Terminals 10 | . 5 . . 2 3 Fabricators . | . . . . . . Repair Stations . | . . . . . . Recycling Units . | . . . . . . Scanalyzers . | . . . . . . Garrison Access . | . . . . . . Terminal Hacks 4 | . 1 1 2 . . Record 2 | . . . 2 . . Open Door 1 | . . 1 . . . Terminal Index 1 | . 1 . . . . Fabricator Hacks . | . . . . . . Repair Station Hacks . | . . . . . . Recycling Unit Hacks . | . . . . . . Scanalyzer . | . . . . . . Garrison Access Hacks . | . . . . . . Unauthorized Hacks 2 | . 2 . . . . Terminals 2 | . 2 . . . . Botnet 1 | . 1 . . . . Disrupt 1 | . 1 . . . . Fabricators . | . . . . . . Repair Stations . | . . . . . . Recycling Units . | . . . . . . Scanalyzers . | . . . . . . Garrison Access . | . . . . . . Data Cores Recovered . | . . . . . . Used . | . . . . . . Hacking Detections 4 | . 2 . . 1 1 Full Trace Events 2 | . . . . 1 1 Feedback Events . | . . . . . . Feedback Blocked . | . . . . . . Robot Schematics Acquired . | . . . . . . Robots Built . | . . . . . . Authchips . | . . . . . . Time . | . . . . . . Total Robot Build Rating . | . . . . . . Part Schematics Acquired . | . . . . . . Parts Built . | . . . . . . Authchips . | . . . . . . Time . | . . . . . . Total Part Build Rating . | . . . . . . Parts Repaired . | . . . . . . Time . | . . . . . . Parts Recycled . | . . . . . . Recycled Matter . | . . . . . . Retrieved Matter . | . . . . . . Retrieved Components . | . . . . . . Parts Scanalyzed . | . . . . . . Part Schematics Acquired . | . . . . . . Parts Damaged . | . . . . . . Bothacking | -11 -10 -10 -10 -9 -8 ------------ Run | Yrd Mat Min Exi Min Mat Used RIF Installer . | . . . . . . Robots Hacked . | . . . . . . Non-combat . | . . . . . . Combat . | . . . . . . Robot Hacks Applied . | . . . . . . Relay Couplers Released . | . . . . . . Fabnet Peak Effective % . | . . . . . . Robots Rewired . | . . . . . . Allies Hacked . | . . . . . . Hacks Repelled . | . . . . . . Allies | -11 -10 -10 -10 -9 -8 -------- Run | Yrd Mat Min Exi Min Mat Total Allies 2 | . . 2 . . . Largest Group 2 | . . 2 2 . . Highest-Rated Group 45 | . . 45 45 . . Highest-Rated Ally 31 | . . 31 31 . . Total Orders 2 | . . 2 . . . EXPLORE 1 | . . 1 . . . RETURN 1 | . . 1 . . . Ally Attacks 8 | . . 8 . . . Total Damage 85 | . . 85 . . . Kills 1 | . . 1 . . . Allies Corrupted . | . . . . . . Allies Melted . | . . . . . . Intel | -11 -10 -10 -10 -9 -8 ------- Run | Yrd Mat Min Exi Min Mat Robot Analysis Total . | . . . . . . Derelict Logs Recovered 4 | . . 3 . 1 . Drone Launches 1 | . . 1 . . . Drone Recoveries 1 | . . 1 . . . Exploration | -11 -10 -10 -10 -9 -8 ------------- Run | Yrd Mat Min Exi Min Mat Turns Passed 3184 | 90 342 600 1122 975 55 Spaces Moved 1782 | 42 183 317 698 509 33 Core 2 | 2 . . . . . Treads 1638 | 40 183 317 698 400 . Legs . | . . . . . . Wheels 142 | . . . . 109 33 Hover . | . . . . . . Flight . | . . . . . . Fastest Speed 50 | 50 160 160 160 80 95 Average Speed 154 | 154 160 160 160 146 95 Slowest Speed 160 | 160 160 160 160 160 95 Overloaded Moves . | . . . . . . Propulsion Burnouts . | . . . . . . Robots Hopped . | . . . . . . Cave-ins Triggered . | . . . . . . Exploration Rate (%) 49 | 4 41 76 88 84 5 Regions Visited 5 Branch Regions 3 Pre-discovered Areas 1 | . . . 1 . . Known Exits Taken . | . . . . . . Unknown Exits Taken 5 | 1 1 1 1 1 . Scrap Searched 4 | . . 2 . 2 . Spaces Dug 1 | . . . . . 1 Terrain Destroyed 1 | . . . . . 1 Melee 1 | . . . . . 1 Projectile . | . . . . . . AOE . | . . . . . . Terrain Rammed . | . . . . . . Walls Destroyed . | . . . . . . Machines Disabled . | . . . . . . Actions | -11 -10 -10 -10 -9 -8 --------- Run | Yrd Mat Min Exi Min Mat Total 2075 | 58 211 395 704 659 48 Wait 138 | 2 6 64 . 62 4 Move 1777 | 41 182 316 697 508 33 Hop . | . . . . . . Pick Up 20 | 5 5 1 1 7 1 Fast Attach 15 | 7 1 . 1 3 3 Attach 2 | . . . . 2 . Detach 1 | . 1 . . . . Swap 8 | . . 4 1 3 . Drop 11 | . 3 2 2 4 . Fire 37 | 3 13 7 . 14 . Melee 63 | . . . . 56 7 Ram . | . . . . . . Kick . | . . . . . . Crush 1 | . . 1 . . . Escape Stasis . | . . . . . . Rewire 2 | . . . 2 . . Trap . | . . . . . . Miscellaneous . | . . . . . . Route ------- -11/Scrapyard -10/Materials (discovered 3 exits: [*Mat] / *Min x2) -10/Mines (discovered 4 exits: [*Mat x2] / *Exi / Sub) -10/Exiles -9/Mines -8/Materials (discovered 4 exits: Fac x3 / Sto) History --------- Turn | Location | Event 10 | -11/Scrapyard | Discovered new exit (range 15) 91 | -11/Scrapyard | Entered Materials 204 | -10/Materials | Discovered new exit (range 8) 271 | -10/Materials | Discovered new exit (range 9) 305 | -10/Materials | Build established: Mutant 353 | -10/Materials | Discovered new exit (range 7) 433 | -10/Materials | Entered Mines 444 | -10/Mines | Met a Derelict bent on vengeance 581 | -10/Mines | Discovered new exit (range 6) 604 | -10/Mines | Found the Drone Emporium 612 | -10/Mines | Found Prototype Device 613 | -10/Mines | Identified Thief Drone Bay 650 | -10/Mines | Discovered new exit (range 61) 775 | -10/Mines | Identified exit to Subcaves 815 | -10/Mines | Learned 8 Materials zone layouts 858 | -10/Mines | Learned 2 Materials zone layouts 874 | -10/Mines | Found a hidden stash of uninstalled traps 1025 | -10/Mines | Deemed a non-threat by the Exiles lab entrance 1025 | -10/Mines | Discovered new exit (range 5) 1033 | -10/Mines | Entered Exiles 1033 | -10/Exiles | Accompanied by 2 allies 1063 | -10/Exiles | Led the pair of lost Derelicts to a safe place 1073 | -10/Exiles | Met 8R-AWN 1101 | -10/Exiles | Met EX-HEX 1161 | -10/Exiles | Met EX-DEC 1169 | -10/Exiles | Learned location of Zion (-7) 1195 | -10/Exiles | Met EX-BIN 1217 | -10/Exiles | Aligned with FarCom system 1219 | -10/Exiles | Given EX-Vault access code 1256 | -10/Exiles | Opened EX-Vault 1263 | -10/Exiles | Found Prototype Processor 1263 | -10/Exiles | Identified 0b10 Alert Chip 1301 | -10/Exiles | Warned to stay clear of 0b10 Research branches 1460 | -10/Exiles | Visited The Gauntlet 2138 | -10/Exiles | Discovered new exit (range 14) 2155 | -10/Exiles | Left Exiles lab with 0b10 Alert Chip 2155 | -10/Exiles | Entered Mines 2372 | -9/Mines | A weapon hastily lodged in a ceiling crevice suddenly fell to the ground 2453 | -9/Mines | Learned Materials stockpile data 2655 | -9/Mines | Excavation squad dispatched 2655 | -9/Mines | A large section of the Mines collapsed 2905 | -9/Mines | Excavation squad dispatched 2937 | -9/Mines | Core integrity fell below 50% 3123 | -9/Mines | Discovered new exit (range 8) 3130 | -9/Mines | Entered Materials 3130 | -8/Materials | Evolved 4 slots: Propulsion x1, Utility x2, Weapon x1 3131 | -8/Materials | Identified exit to Factory 3131 | -8/Materials | Identified exit to Storage 3139 | -8/Materials | Lost 3 parts (1p1n1w) 3185 | -8/Materials | Self-destructed Last Messages --------------- GOAL=ESCAPE 03130_ Receiving FarCom transmissions... Loading 10 Materials zones... Loading Materials stockpile data (x4)... 03147_ Acquired Heat Sink. 03162_ Y-45 Defender Lgt. Treads severed. 03166_ Y-45 Defender destroyed. 03170_ Acquired Lgt. Armor Plating. 03173_ Acquired Machine Analyzer. 03175_ Acquired 20 matter. 03177_ Acquired Lgt. Treads. 03178_ R-06 Scavenger collects Beam Rifle. 03179_ Acquired 10 matter. 03181_ Sneak attack on R-06 Scavenger. 03181_ Destroyed Tractor Beam. 03181_ R-06 Scavenger destroyed. 03185_ Connecting with Terminal... 03185_ Current location identified: Materials 03185_ ALERT: Suspicious activity at Terminal M010. Dispatching Investigation squad. Map ----- +----------------------------------------------------+ | | | | | | | | | | | | | | | | | | | | | | | | | | | | | ??????#############???????????????????????######## | | ??????# #???????????????????????# """"" | | ??????# #???????????????????????# """"" | | ??????# """ #???????????????????????# """"" | | ####### """ #?####################### | | # # """ #?# # # # | | # # """ #?# !! # """ # # | | #### # #?# !! # """ # ######## | | # #######+#####?# "" # """ # ######## | | + ##### ###### "" # # | | # " # * T" # ! """ + | | # "T + @"" # """ # """" """ | | " # ##### ###### *""!# """ # """" """ | | R" # ###### ##????# [%%![; # """" """ | | "" # # # #???######## ######+##### | | + # # ##### ########## ##### | | #### # # ######## | | # # + #??????? | | # # w#+###+## ######### #??????? | | / + " # ######### ###########w #??????? | | # # T # T #????# ## #??????? | | # # " # #????# ##Y #??????? | | # # # #????# """ """ """ ## #??????? | | #+## ###### #????# """ """ """ ## ######## | | # #????# #????# """ """ """ ## ## | | # #????#?????????????????????????????????????? | | # #????#?????????????????????????????????????? | | #+##+####??#???????????????????????????""????????? | | #??#???????????????????????????T?????????? | | """ #??#?????????????????????????????????????? | | """ #??#?????????????????????????????????????? | | """ #??#?????????????????????????????????????? | | #????????????????????????????????????????? | | """ #????????????????????????????????????????? | | """ #????????????????????????????????????????? | | """ #????????????????????????????????????????? | +----------------------------------------------------+ Best States ------------- Heat Dissipation 31 Energy Generation 14 Energy Capacity 250 Matter Stores 300 Matter Capacity 300 Sight Range 16 Terrain Scan Range 16 Terrain Scan Density 10 Armor Coverage 150 Evasion (%) 41 Recoil Reduction 2 Item Schematics ----------------- None Robot Schematics ------------------ None Fabricated ------------ Nothing Alien Tech Used ----------------- None Achievements -------------- None Challenges ------------ None Game ------ Seed CompactFlyingHammer Manual? 0 Play Time 00:18:28 Cumulative 110.4 hours Start 2024.05.15 @ 23:08:07 End 2024.05.16 @ 18:17:31 Sessions 3 Manual Loads 0 Difficulty Rogue Special Mode None Game No. 85 Rogue 46 Adventurer 32 Explorer 7 Win Type - Total 0 Types 0/0/0/0/0/0/0/0/0 Lore% 28 Gallery% 62 Achievement% 46 Wizard Run 0 Options --------- Layout 2 ASCII 0 Keyboard 0 Movement Numpad Keybinds 0 Fullscreen 2 Font 16/SmallcapsGlow Map View 50x49 Zoom Use 0% Tactical HUD 1 Map Filters NONE Filters NONE Steam SD RUN: 03275543-c2e9-41af-8943-67c361169c19